lending/lending_fUSD_20240124
["ID","MTS","AMOUNT","RATE_DAILY","PERIOD"]
[312637022,1706122315704,-674.93,0.00049863,31]
[312637023,1706122315720,-754.8,0.00049863,31]
[312637024,1706122315736,-500.0,0.00049863,31]
[312637025,1706122315751,-994.52,0.00049863,31]
[312637026,1706122315766,-500.0,0.00049863,31]
[312637027,1706122315782,-500.24115288,0.00049863,31]
[312637028,1706122315797,-500.0,0.00049863,31]
[312637029,1706122315814,-619.7,0.00049863,31]
[312637030,1706122315830,-1265.56,0.00049863,31]
[312637031,1706122315847,-500.0,0.00049863,31]
[312637032,1706122315862,-1044.87471391,0.00049863,31]
[312637033,1706122315878,-553.3,0.00049863,31]
[312637034,1706122315893,-500.0,0.00049863,31]
[312637035,1706122315908,-697.79,0.00049863,31]
[312637036,1706122315923,-1070.96,0.00049863,31]
[312637037,1706122315939,-511.37026546,0.00049863,31]
[312637038,1706122315954,-500.0,0.00049863,31]
[312637039,1706122315969,-1137.93,0.00049863,31]
[312637040,1706122315984,-1012.33,0.00049863,31]
[312637041,1706122315999,-602.00435292,0.00049863,31]
[312637042,1706122316013,-630.80960056,0.00049863,31]
[312637043,1706122316028,-876.45,0.00049863,31]
[312637044,1706122316043,-500.0,0.00049863,31]
[312637045,1706122316058,-715.02,0.00049863,31]
[312637046,1706122316075,-500.0,0.00049863,7]
[312637048,1706122316351,-500.0,0.00049863,31]
[312637049,1706122316370,-833.81,0.00049863,31]
[312637050,1706122316380,-500.0,0.00049863,31]
[312637051,1706122316390,-500.0,0.00049863,31]
[312637052,1706122316399,-1061.9,0.00049863,31]
[312637053,1706122316409,-528.39937116,0.00049863,31]
[312637054,1706122316419,-1257.58,0.00049863,31]
[312637055,1706122316429,-500.0,0.00049863,31]
[312637056,1706122316438,-500.0,0.00049863,31]
[312637057,1706122316448,-500.0,0.00049863,31]
[312637058,1706122316458,-980.87,0.00049863,31]
[312637059,1706122316468,-642.76,0.00049863,31]
[312637060,1706122316477,-2365.7,0.00049863,31]
[312637061,1706122316486,-550.34,0.00049863,31]
[312637062,1706122316495,-500.0,0.00049863,31]
[312637063,1706122316504,-500.0,0.00049863,31]
[312637064,1706122316514,-500.0,0.00049863,31]
[312637065,1706122316524,-9651.62,0.00049863,5]
[312637066,1706122316533,-500.0,0.00049863,31]
[312637067,1706122316542,-500.0,0.00049863,31]
[312637068,1706122316552,-500.0,0.00049863,31]
[312637069,1706122316561,-500.0,0.00049863,31]
[312637070,1706122316572,-500.0,0.00049863,31]
[312637071,1706122316581,-500.0,0.00049863,31]
[312637072,1706122316590,-1273.8,0.00049863,31]
[312637073,1706122316600,-516.0,0.00049863,31]
[312637074,1706122316610,-259.15,0.00049863,31]
[312637075,1706122316619,-500.0,0.00049863,31]
[312637076,1706122316629,-848.97,0.00049863,31]
[312637077,1706122316638,-150.81903121,0.00049863,31]
[312637078,1706122316647,-826.53,0.00049863,31]
[312637079,1706122316658,-500.0,0.00049863,31]
[312637080,1706122316667,-500.0,0.00049863,31]
[312637081,1706122316677,-545.26317286,0.00049863,31]
[312637082,1706122316687,-500.0,0.00049863,31]
[312637083,1706122316697,-570.78,0.00049863,31]
[312637084,1706122316706,-750.28,0.00049863,31]
[312637085,1706122316716,-500.0,0.00049863,31]
[312637086,1706122316726,-647.3,0.00049863,31]
[312637087,1706122316736,-1277.6,0.00049863,31]
[312637088,1706122316746,-886.52,0.00049863,31]
[312637089,1706122316756,-500.0,0.00049863,31]
[312637090,1706122316765,-744.61,0.00049863,31]
[312637091,1706122316775,-6353.27,0.00049863,5]
[312637092,1706122316785,-500.0,0.00049863,31]
[312637093,1706122316795,-688.18,0.00049863,31]
[312637094,1706122316804,-500.0,0.00049863,31]
[312637095,1706122316814,-500.0,0.00049863,31]
[312637096,1706122316825,-500.0,0.00049863,31]
[312637097,1706122316835,-585.99,0.00049863,31]
[312637098,1706122316845,-316.77008743,0.00049863,14]
[312637099,1706122316854,-500.0,0.00049863,31]
[312637100,1706122316864,-500.0,0.00049863,31]
[312637101,1706122316874,-513.1962456,0.00049863,31]
[312637102,1706122316885,-508.718593,0.00049863,31]
[312637103,1706122316895,-1311.12,0.00049863,31]
[312637105,1706122316905,-500.0,0.00049863,31]
[312637106,1706122316915,-500.0,0.00049863,31]
[312637107,1706122316925,-635.69,0.00049863,31]
[312637108,1706122316936,-500.0,0.00049863,31]
[312637109,1706122316946,-2747.11,0.00049863,31]
[312637110,1706122316956,-1064.36,0.00049863,31]
[312637111,1706122316965,-500.0,0.00049863,31]
[312637112,1706122316975,-988.82,0.00049863,31]
[312637113,1706122316985,-500.0,0.00049863,31]
[312637114,1706122316994,-336.97,0.00049863,31]
[312637115,1706122317004,-500.0,0.00049863,31]
[312637116,1706122317015,-500.0,0.00049863,31]
[312637117,1706122317025,-506.02,0.00049863,31]
[312637118,1706122317036,-500.0,0.00049863,31]
[312637119,1706122317046,-500.0,0.00049863,31]
[312637120,1706122317056,-500.0,0.00049863,31]
[312637121,1706122317066,-500.0,0.00049863,31]
[312637122,1706122317079,-4014.55,0.00049863,31]
[312637123,1706122317089,-996.79,0.00049863,31]
[312637124,1706122317099,-548.62635982,0.00049863,31]
[312637125,1706122317109,-500.0,0.00049863,31]
[312637126,1706122317119,-500.0,0.00049863,31]
[312637127,1706122317129,-879.67,0.00049863,31]
[312637128,1706122317139,-500.0,0.00049863,31]
[312637129,1706122317148,-500.0,0.00049863,31]
[312637130,1706122317158,-500.0,0.00049863,31]
[312637131,1706122317168,-556.81,0.00049863,31]
[312637132,1706122317177,-500.0,0.00049863,31]
[312637133,1706122317187,-369.26135293,0.00049863,31]
[312637134,1706122317197,-722.88,0.00049863,31]
[312637135,1706122317206,-1740.65,0.00049863,31]
[312637136,1706122317215,-1257.39,0.00049863,31]
[312637137,1706122317225,-500.0,0.00049863,31]
[312637138,1706122317234,-891.73,0.00049863,31]
[312637139,1706122317244,-1603.09,0.00049863,31]
[312637140,1706122317253,-500.0,0.00049863,31]
[312637141,1706122317262,-703.85,0.00049863,31]
[312637142,1706122317271,-500.0,0.00049863,31]
[312637143,1706122317281,-500.0,0.00049863,31]
[312637144,1706122317292,-4733.77,0.00049863,31]
[312637145,1706122317303,-500.0,0.00049863,31]
[312637146,1706122317312,-534.53,0.00049863,31]
[312637147,1706122317324,-3077.84,0.00049863,31]
[312637148,1706122317334,-2216.62,0.00049863,31]
[312637149,1706122317343,-500.0,0.00049863,31]
[312637150,1706122317352,-654.54,0.00049863,31]
[312637151,1706122317362,-1335.18,0.00049863,31]
[312637152,1706122317373,-500.0,0.00049863,31]
[312637153,1706122317382,-603.22,0.00049863,31]
[312637154,1706122317391,-820.02,0.00049863,31]
[312637155,1706122317400,-4058.85,0.00049863,31]
[312637156,1706122317410,-500.0,0.00049863,31]
[312637157,1706122317419,-500.0,0.00049863,30]
[312637158,1706122317429,-870.48,0.00049863,31]
[312637159,1706122317438,-1196.3,0.00049863,31]
[312637160,1706122317447,-509.95921323,0.00049863,31]
[312637161,1706122317457,-691.03,0.00049863,31]
[312637162,1706122317466,-500.0,0.00049863,31]
[312637163,1706122317476,-500.0,0.00049863,31]
[312637164,1706122317485,-506.34,0.00049863,31]
[312637165,1706122317494,-500.0,0.00049863,31]
[312637166,1706122317504,-1595.23,0.00049863,31]
[312637167,1706122317513,-500.0,0.00049863,31]
[312637168,1706122317523,-9475.21,0.00049863,31]
[312637169,1706122317532,-500.0,0.00049863,31]
[312637170,1706122317542,-2256.81,0.00049863,31]
[312637171,1706122317551,-500.0,0.00049863,31]
[312637172,1706122317560,-500.0,0.00049863,31]
[312637173,1706122317570,-2007.79,0.00049863,31]
[312637174,1706122317579,-500.0,0.00049863,31]
[312637175,1706122317589,-504.15,0.00049863,31]
[312637176,1706122317599,-949.97,0.00049863,31]
[312637177,1706122317608,-500.0,0.00049863,31]
[312637178,1706122317617,-760.02,0.00049863,31]
[312637179,1706122317627,-1753.67,0.00049863,2]
[312637180,1706122317636,-500.0,0.00049863,31]
[312637181,1706122317646,-960.34,0.00049863,31]
[312637182,1706122317656,-482.29473789,0.00049863,31]
[312637183,1706122317665,-895.93,0.00049863,31]
[312637184,1706122317675,-500.0,0.00049863,31]
[312637185,1706122317685,-500.0,0.00049863,31]
[312637186,1706122317694,-200.72311377,0.00049863,31]
[312637187,1706122317704,-500.0,0.00049863,31]
[312637188,1706122317713,-500.0,0.00049863,31]
[312637189,1706122317723,-9793.91,0.00049863,31]
[312637190,1706122317733,-630.07,0.00049863,31]
[312637191,1706122317743,-500.0,0.00049863,31]
[312637192,1706122317754,-1085.19,0.00049863,31]
[312637193,1706122317763,-500.0,0.00049863,31]
[312637194,1706122317773,-733.81,0.00049863,31]
[312637195,1706122317782,-500.0,0.00049863,31]
[312637196,1706122317792,-500.0,0.00049863,31]
[312637197,1706122317802,-822.62,0.00049863,31]
[312637198,1706122317811,-500.0,0.00049863,31]
[312637199,1706122317821,-786.38,0.00049863,31]
[312637200,1706122317831,-5724.55,0.00049863,31]
[312637201,1706122317841,-2304.75,0.00049863,31]
[312637202,1706122317851,-583.81,0.00049863,31]
[312637203,1706122317860,-1209.52,0.00049863,31]
[312637204,1706122317870,-500.0,0.00049863,31]
[312637205,1706122317879,-500.0,0.00049863,31]
[312637206,1706122317889,-500.0,0.00049863,31]
[312637207,1706122317899,-921.04,0.00049863,31]
[312637208,1706122317908,-1294.87,0.00049863,31]
[312637209,1706122317918,-593.18,0.00049863,31]
[312637210,1706122317928,-500.0,0.00049863,31]
[312637211,1706122317937,-528.92732225,0.00049863,31]
[312637212,1706122317947,-650.95,0.00049863,31]
[312637213,1706122317956,-1239.0,0.00049863,31]
[312637214,1706122317966,-604.69,0.00049863,31]
[312637215,1706122317976,-1539.95,0.00049863,31]
[312637216,1706122317985,-8834.98,0.00049863,31]
[312637217,1706122317995,-500.0,0.00049863,31]
[312637218,1706122318005,-547.48,0.00049863,31]
[312637219,1706122318015,-500.0,0.00049863,31]
[312637220,1706122318024,-500.0,0.00049863,31]
[312637221,1706122318034,-1282.38,0.00049863,31]
[312637222,1706122318043,-2142.95,0.00049863,7]
[312637223,1706122318053,-966.05,0.00049863,31]
[312637224,1706122318061,-646.44,0.00049863,31]
[312637225,1706122318072,-747.91,0.00049863,31]
[312637226,1706122318081,-1871.41,0.00049863,31]
[312637227,1706122318091,-912.87,0.00049863,31]
[312637228,1706122318100,-1116.62,0.00049863,31]
[312637229,1706122318110,-833.57,0.00049863,31]
[312637230,1706122318121,-500.0,0.00049863,31]
[312637231,1706122318130,-500.0,0.00049863,31]
[312637232,1706122318140,-189.11532603,0.00049863,31]
[312637233,1706122318150,-219.95277146,0.00049863,31]
[312637234,1706122318160,-500.0,0.00049863,31]
[312637235,1706122318169,-657.31,0.00049863,31]
[312637236,1706122318178,-1268.63,0.00049863,31]
[312637237,1706122318187,-510.26528047,0.00049863,31]
[312637238,1706122318196,-500.0,0.00049863,31]
[312637239,1706122318205,-500.0,0.00049863,31]
[312637240,1706122318215,-731.18,0.00049863,31]
[312637241,1706122318224,-1207.08,0.00049863,31]
[312637242,1706122318233,-1174.69,0.00049863,31]
[312637243,1706122318243,-515.40200695,0.00049863,31]
[312637244,1706122318253,-500.0,0.00049863,31]
[312637245,1706122318263,-950.0,0.00049863,7]
[312637246,1706122318273,-2581.31,0.00049863,31]
[312637247,1706122318283,-740.71,0.00049863,31]
[312637248,1706122318294,-1329.41,0.00049863,31]
[312637249,1706122318304,-1378.41,0.00049863,31]
[312637250,1706122318314,-500.0,0.00049863,31]
[312637251,1706122318327,-545.75,0.00049863,31]
[312637252,1706122318337,-500.0,0.00049863,31]
[312637253,1706122318347,-1309.93,0.00049863,31]
[312637254,1706122318357,-500.0,0.00049863,31]
[312637255,1706122318366,-500.0,0.00049863,31]
[312637256,1706122318377,-500.0,0.00049863,31]
[312637257,1706122318387,-973.63,0.00049863,31]
[312637258,1706122318396,-500.0,0.00049863,31]
[312637259,1706122318406,-532.40317435,0.00049863,31]
[312637260,1706122318415,-1370.14,0.00049863,31]
[312637261,1706122318425,-500.0,0.00049863,31]
[312637262,1706122318435,-500.0,0.00049863,31]
[312637263,1706122318445,-500.0,0.00049863,31]
[312637264,1706122318454,-500.0,0.00049863,31]
[312637265,1706122318463,-638.44891999,0.00049863,31]
[312637266,1706122318472,-625.5,0.00049863,31]
[312637267,1706122318482,-561.88,0.00049863,31]
[312637268,1706122318491,-500.0,0.00049863,31]
[312637269,1706122318500,-500.0,0.00049863,31]
[312637270,1706122318511,-500.0,0.00049863,31]
[312637271,1706122318520,-506.27664014,0.00049863,31]
[312637272,1706122318530,-1202.1,0.00049863,31]
[312637273,1706122318540,-1086.56,0.00049863,31]
[312637274,1706122318549,-712.36,0.00049863,31]
[312637275,1706122318559,-1256.89,0.00049863,31]
[312637276,1706122318569,-4191.4,0.00049863,31]
[312637277,1706122318580,-500.0,0.00049863,31]
[312637278,1706122318590,-500.0,0.00049863,31]
[312637279,1706122318599,-500.0,0.00049863,31]
[312637280,1706122318609,-1151.56,0.00049863,31]
[312637281,1706122318619,-593.19,0.00049863,31]
[312637282,1706122318628,-1249.41,0.00049863,31]
[312637283,1706122318638,-500.0,0.00049863,31]
[312637284,1706122318647,-500.0,0.00049863,31]
[312637285,1706122318657,-500.0,0.00049863,31]
[312637286,1706122318667,-500.0,0.00049863,31]
[312637287,1706122318676,-500.0,0.00049863,31]
[312637288,1706122318686,-500.0,0.00049863,31]
[312637289,1706122318695,-500.0,0.00049863,31]
[312637290,1706122318705,-500.0,0.00049863,31]
[312637291,1706122318716,-500.0,0.00049863,31]
[312637292,1706122318725,-500.0,0.00049863,31]
[312637293,1706122318736,-500.0,0.00049863,31]
[312637294,1706122318746,-500.0,0.00049863,31]
[312637295,1706122318755,-1307.18,0.00049863,31]
[312637296,1706122318765,-795.62,0.00049863,31]
[312637297,1706122318774,-749.12,0.00049863,31]
[312637298,1706122318784,-696.33,0.00049863,31]
[312637299,1706122318794,-500.0,0.00049863,31]
[312637300,1706122318804,-500.0,0.00049863,14]
[312637301,1706122318814,-500.0,0.00049863,31]
[312637302,1706122318825,-1284.18,0.00049863,31]
[312637303,1706122318835,-652.98,0.00049863,31]
[312637304,1706122318845,-981.53,0.00049863,31]
[312637305,1706122318855,-648.47,0.00049863,31]
[312637306,1706122318864,-523.2,0.00049863,31]
[312637307,1706122318875,-510.01,0.00049863,31]
[312637308,1706122318885,-609.97,0.00049863,31]
[312637309,1706122318895,-668.31,0.00049863,31]
[312637310,1706122318905,-1472.4,0.00049863,31]
[312637311,1706122318914,-982.27,0.00049863,31]
[312637312,1706122319092,-468.89150466,0.00049863,31]
[312637313,1706122319102,-500.0,0.00049863,31]
[312637314,1706122319111,-500.0,0.00049863,31]
[312637315,1706122319122,-500.0,0.00049863,31]
[312637316,1706122319131,-1275.47,0.00049863,20]
[312637317,1706122319140,-975.67,0.00049863,31]
[312637318,1706122319149,-500.0,0.00049863,31]
[312637319,1706122319158,-859.46,0.00049863,31]
[312637320,1706122319167,-500.0,0.00049863,31]
[312637321,1706122319176,-2167.45,0.00049863,31]
[312637322,1706122319186,-500.0,0.00049863,31]
[312637323,1706122319195,-500.0,0.00049863,31]
[312637324,1706122319204,-513.46181693,0.00049863,31]
[312637325,1706122319214,-500.0,0.00049863,31]
[312637326,1706122319223,-666.0,0.00049863,31]
[312637327,1706122319232,-1089.95,0.00049863,31]
[312637328,1706122319241,-641.64,0.00049863,31]
[312637329,1706122319251,-924.64,0.00049863,31]
[312637330,1706122319260,-1430.01,0.00049863,31]
[312637331,1706122319269,-500.0,0.00049863,31]
[312637332,1706122319279,-536.15,0.00049863,31]
[312637333,1706122319290,-589.35,0.00049863,31]
[312637334,1706122319302,-512.52059458,0.00049863,31]
[312637335,1706122319312,-515.40831666,0.00049863,31]
[312637336,1706122319322,-500.0,0.00049863,31]
[312637337,1706122319333,-6481.22,0.00049863,31]
[312637338,1706122319342,-1564.68,0.00049863,31]
[312637339,1706122319351,-1129.08,0.00049863,31]
[312637340,1706122319360,-944.64,0.00049863,31]
[312637341,1706122319369,-500.0,0.00049863,31]
[312637342,1706122319380,-500.0,0.00049863,31]
[312637343,1706122319390,-500.0,0.00049863,31]
[312637344,1706122319398,-500.0,0.00049863,31]
[312637345,1706122319408,-500.0,0.00049863,31]
[312637346,1706122319417,-500.0,0.00049863,30]
[312637347,1706122319426,-1816.2,0.00049863,31]
[312637348,1706122319436,-500.0,0.00049863,31]
[312637349,1706122319446,-511.21049531,0.00049863,31]
[312637350,1706122319455,-500.0,0.00049863,31]
[312637351,1706122319464,-887.53,0.00049863,31]
[312637352,1706122319474,-677.18,0.00049863,31]
[312637353,1706122319484,-1137.33,0.00049863,31]
[312637354,1706122319493,-1033.79,0.00049863,31]
[312637355,1706122319502,-952.51,0.00049863,31]
[312637356,1706122319512,-750.26,0.00049863,31]
[312637357,1706122319521,-500.0,0.00049863,31]
[312637358,1706122319531,-522.58430327,0.00049863,31]
[312637359,1706122319540,-500.0,0.00049863,7]
[312637360,1706122319550,-500.0,0.00049863,31]
[312637361,1706122319559,-500.0,0.00049863,31]
[312637362,1706122319572,-616.97,0.00049863,31]
[312637363,1706122319581,-500.0,0.00049863,31]
[312637364,1706122319590,-1156.88,0.00049863,31]
[312637365,1706122319600,-500.0,0.00049863,31]
[312637366,1706122319609,-575.07,0.00049863,31]
[312637367,1706122319618,-509.03226259,0.00049863,31]
[312637368,1706122319628,-500.0,0.00049863,31]
[312637369,1706122319637,-500.0,0.00049863,31]
[312637370,1706122319647,-237.30709539,0.00049863,31]
[312637371,1706122319657,-7701.48,0.00049863,15]
[312637372,1706122319666,-500.0,0.00049863,31]
[312637373,1706122319676,-500.0,0.00049863,31]
[312637374,1706122319686,-500.0,0.00049863,31]
[312637375,1706122319696,-508.6,0.00049863,31]
[312637376,1706122319706,-500.0,0.00049863,31]
[312637377,1706122319716,-500.0,0.00049863,31]
[312637378,1706122319725,-571.75,0.00049863,31]
[312637379,1706122319735,-588.05,0.00049863,31]
[312637380,1706122319746,-532.52,0.00049863,31]
[312637381,1706122319755,-500.0,0.00049863,31]
[312637382,1706122319764,-828.94,0.00049863,31]
[312637383,1706122319774,-380.90441094,0.00049863,31]
[312637384,1706122319784,-500.0,0.00049863,31]
[312637385,1706122319794,-1048.36,0.00049863,31]
[312637386,1706122319803,-500.0,0.00049863,30]
[312637387,1706122319813,-500.0,0.00049863,31]
[312637388,1706122319825,-160.0,0.00049863,2]
[312637389,1706122319834,-732.05,0.00049863,31]
[312637390,1706122319844,-505.75395352,0.00049863,31]
[312637391,1706122319854,-500.0,0.00049863,31]
[312637392,1706122319863,-952.74,0.00049863,31]
[312637393,1706122319873,-1176.12,0.00049863,31]
[312637394,1706122319883,-500.0,0.00049863,31]
[312637395,1706122319893,-1417.3,0.00049863,2]
[312637396,1706122319902,-1220.83,0.00049863,31]
[312637397,1706122319912,-921.3,0.00049863,31]
[312637398,1706122319922,-897.04,0.00049863,31]
[312637399,1706122319932,-500.0,0.00049863,31]
[312637400,1706122319943,-5880.03,0.00049863,31]
[312637401,1706122319953,-1858.89,0.00049863,31]
[312637402,1706122319963,-500.0,0.00049863,31]
[312637403,1706122319973,-500.0,0.00049863,31]
[312637404,1706122319983,-550.81,0.00049863,31]
[312637405,1706122319993,-500.0,0.00049863,31]
[312637406,1706122320004,-500.0,0.00049863,31]
[312637407,1706122320014,-500.0,0.00049863,31]
[312637408,1706122320023,-500.0,0.00049863,31]
[312637409,1706122320033,-500.0,0.00049863,31]
[312637410,1706122320042,-513.52025789,0.00049863,31]
[312637411,1706122320051,-889.14,0.00049863,31]
[312637412,1706122320061,-1157.35,0.00049863,31]
[312637413,1706122320070,-739.19,0.00049863,31]
[312637414,1706122320079,-500.0,0.00049863,31]
[312637415,1706122320089,-1017.77,0.00049863,31]
[312637416,1706122320098,-500.0,0.00049863,31]
[312637417,1706122320107,-500.0,0.00049863,31]
[312637418,1706122320115,-500.0,0.00049863,31]
[312637419,1706122320125,-899.45,0.00049863,31]
[312637420,1706122320134,-500.0,0.00049863,31]
[312637421,1706122320143,-1542.77,0.00049863,31]
[312637422,1706122320153,-500.0,0.00049863,31]
[312637423,1706122320163,-1135.37,0.00049863,31]
[312637424,1706122320172,-502.38,0.00049863,31]
[312637425,1706122320182,-1208.25,0.00049863,31]
[312637426,1706122320191,-151.0,0.00049863,14]
[312637427,1706122320199,-280.69325,0.00049863,14]
[312637428,1706122320208,-151.0,0.00049863,14]
[312637429,1706122320219,-151.0,0.00049863,14]
[312637430,1706122320228,-8252.892325,0.00049863,14]
[312637431,1706122320238,-8252.89232,0.00049863,14]
[312637432,1706122320248,-161.289658,0.00049863,14]
[312637433,1706122320258,-161.289668,0.00049863,14]
[312637434,1706122320268,-221.608802,0.00049863,14]
[312637435,1706122320278,-221.608794,0.00049863,14]
[312637436,1706122320288,-385.695419,0.00049863,14]
[312637437,1706122320307,-385.695416,0.00049863,14]
[312637438,1706122320316,-180.313812,0.00049863,14]
[312637439,1706122320326,-180.313812,0.00049863,14]
[312637440,1706122320336,-291.573217,0.00049863,14]
[312637441,1706122320345,-291.573217,0.00049863,14]
[312637442,1706122320355,-151.0,0.00049863,14]
[312637443,1706122320364,-318.305467,0.00049863,14]
[312637444,1706122320373,-318.305467,0.00049863,14]
[312637445,1706122320383,-20124.762131,0.0004989,11]
[312637446,1706122320392,-20275.0,0.0004989,2]
[312637447,1706122320402,-10667.0,0.0004989,2]
[312637448,1706122320411,-200.0,0.000499,30]
[312637449,1706122320420,-149999.0,0.000499,30]
[312637450,1706122320429,-55846.08518842,0.000499,30]
[312637451,1706122320439,-151.0,0.000499,14]
[312637452,1706122320449,-150.0,0.000499,30]
[312637453,1706122320458,-151.0,0.000499,7]
[312637454,1706122320467,-332.57745,0.000499,14]
[312637455,1706122320476,-332.577443,0.000499,14]
[312637456,1706122320485,-153.748065,0.000499,14]
[312637457,1706122320495,-153.748072,0.000499,14]
[312637458,1706122320505,-151.0,0.000499,14]
[312637459,1706122320514,-261.972151,0.000499,14]
[312637460,1706122320523,-180.313812,0.000499,14]
[312637461,1706122320532,-180.313813,0.000499,14]
[312637462,1706122320541,-291.573217,0.000499,14]
[312637463,1706122320550,-291.573214,0.000499,14]
[312637464,1706122320560,-151.0,0.000499,14]
[312637465,1706122320570,-318.305467,0.000499,14]
[312637466,1706122320582,-318.305473,0.000499,14]
[312637467,1706122320591,-150.0,0.00049903,30]
[312637468,1706122320600,-150.0,0.00049907,30]
[312637469,1706122320609,-150.0,0.00049958,30]
[312637470,1706122320618,-111132.3569622,0.00049966,2]
[312637471,1706122320628,-8772.0018853,0.00049966,2]
[312637472,1706122320638,-4834.645931,0.00049966,2]
[312637473,1706122320649,-1022.24945986,0.00049967,5]
[312637474,1706122320660,-558.22850669,0.0004998,5]
[312637475,1706122320670,-157.5,0.0004998,5]
[312637476,1706122320680,-787.5,0.0004998,5]
[312637477,1706122320690,-654.73615632,0.0004998,5]
[312637478,1706122320700,-150.0,0.0004998,30]
[312637479,1706122320709,-200.0,0.00049987,30]
[312637480,1706122320719,-12648.0,0.0004999,2]
[312637481,1706122320728,-6195.0,0.0004999,2]
[312637482,1706122320738,-150.0,0.00049998,30]
[312637483,1706122320747,-2954.05592216,0.0005,4]
[312637484,1706122320756,-269.06929793,0.0005,4]
[312637485,1706122320766,-182.91958645,0.0005,4]
[312637486,1706122320775,-200.0,0.0005,2]
[312637487,1706122320784,-305.5526235,0.0005,2]
[312637488,1706122320794,-863.86411843,0.0005,2]
[312637489,1706122320804,-179.01591988,0.0005,2]
[312637490,1706122320814,-155.38851539,0.0005,2]
[312637491,1706122320826,-1000.0,0.0005,2]
[312637492,1706122320835,-1000.0,0.0005,2]
[312637493,1706122320844,-100000.0,0.0005,30]
[312637494,1706122320856,-1007.03,0.0005,2]
[312637495,1706122320865,-1000.0,0.0005,2]
[312637496,1706122320875,-1000.0,0.0005,2]
[312637497,1706122320884,-1000.0,0.0005,2]
[312637498,1706122320893,-3899.48799871,0.0005,2]
[312637499,1706122320903,-1108.07513489,0.0005,2]
[312637500,1706122320913,-500.0,0.0005,6]
[312637501,1706122320922,-4131.24803065,0.0005,4]
[312637502,1706122320932,-19149.07983805,0.0005,2]
[312637503,1706122320942,-11567.18832024,0.0005,5]
[312637504,1706122320952,-610.3673651,0.0005,22]
[312637505,1706122320961,-18188.83726431,0.0005,20]
[312637506,1706122320970,-6036.63097908,0.0005,12]
[312637507,1706122320980,-3137.73061496,0.0005,20]
[312637508,1706122320989,-807.58675429,0.0005,2]
[312637509,1706122320998,-500.0,0.0005,6]
[312637510,1706122321007,-201999.99201557,0.0005,30]
[312637511,1706122321017,-117605.08274208,0.0005,25]
[312637512,1706122321026,-6898.8665213,0.0005,4]
[312637513,1706122321035,-103913.56475688,0.0005,30]
[312637514,1706122321044,-254.26,0.0005,2]
[312637515,1706122321054,-990.32,0.0005,31]
[312637516,1706122321063,-969.16,0.0005,31]
[312637517,1706122321075,-969.16,0.0005,30]
[312637518,1706122321084,-969.16,0.0005,31]
[312637519,1706122321094,-969.16,0.0005,30]
[312637520,1706122321103,-969.16,0.0005,31]
[312637521,1706122321113,-969.16,0.0005,31]
[312637522,1706122321123,-969.16,0.0005,21]
[312637523,1706122321132,-969.16,0.0005,31]